[Event "NED-ch U20 Girls 2018"]
[Site "Assen"]
[Date "2018.05.03"]
[Round "5"]
[White "Den Dunnen, Lola"]
[Black "Duson, Robin"]
[Result "0-1"]
[ECO "E46"]
[WhiteElo "1912"]
[BlackElo "1920"]
[Annotator "NA"]
[PlyCount "142"]
[EventDate "2018.??.??"]
[EventType "swiss"]
[EventCountry "NED"]
[SourceTitle "playchess.com"]
[Source "ChessBase"]
[SourceQuality "1"]
[TimeControl "5400+30"]

1. d4 {[%emt 0:09:11]} Nf6 {[%emt 0:00:27]} 2. c4 {[%emt 0:00:24]} e6 {[%emt 0:00:15]} 3. Nc3 {[%emt 0:00:12]} Bb4 {[%emt 0:00:14]} 4. e3 {[%emt 0:00:06]} O-O {[%emt 0:00:21]} 5. Nge2 {[%emt 0:00:03]} d5 {[%emt 0:00:34]} 6. a3 {[%emt 0:01:27]} Bd6 {[%emt 0:00:20]} 7. cxd5 {[%emt 0:05:11]} exd5 {[%emt 0:01:09]} 8. Ng3 {[%emt 0:03:58] E46: Nimzo-Indian: Rubinstein: 4 e3 0-0 5 Ne2 without early Bd3} Re8 {[%emt 0:02:36]} 9. Bd3 {[%emt 0:04:23]} b6 {[%emt 0:04:59] LiveBook: 10 Games} (9... c5 10. dxc5 Bxc5 11. O-O Nc6 12. b4 Bb6 13. Nce2 d4 14. e4 Ne5 15. Bf4 Nfg4 16. h3 Nxd3 17. Qxd3 Ne5 18. Bxe5 Rxe5 19. f4 Re8 {1-0 (42) Nakamura,H (2787)-Topalov,V (2761) Paris 2016}) 10. b4 {[%emt 0:05:09]} c6 {[%emt 0:02:57]} 11. O-O {[%emt 0:05:26]} Nbd7 {[%emt 0:03:34]} 12. Qc2 {[%emt 0:07:56]} Bb7 $146 {[%emt 0:07:48]} ({Predecessor:} 12... Nf8 13. f3 Bb7 14. Nf5 Bc7 15. Ne2 Rc8 {1-0 (31) Borsuk,A (2303)-Domarkaite,L (2187) Istanbul 2000}) 13. e4 {[%emt 0:09:59]} dxe4 {[%emt 0:13:38]} 14. Ngxe4 {[%emt 0:05:10]} Bc7 {[%emt 0:04:02]} 15. Bg5 {[%emt 0:03:09]} h6 {[%emt 0:00:51]} 16. Be3 {[%emt 0:07:39]} Nxe4 {[%emt 0:03:35]} 17. Bxe4 {[%emt 0:00:54]} Nf6 {[%emt 0:01:19]} 18. Bf3 {[%emt 0:00:49]} Qd7 {[%emt 0:08:03]} 19. g3 {[%emt 0:05:11]} Bd6 {[%emt 0:07:29]} 20. Rfd1 $11 {[%emt 0:01:59]} Rac8 {[%emt 0:03:31]} 21. Qd3 {[%emt 0:02:12]} Bb8 {[%emt 0:03:53]} 22. Bg2 {[%emt 0:03:30]} Rcd8 {[%emt 0:02:26]} 23. Rac1 {[%emt 0:02:02]} Re7 {[%emt 0:02:11]} 24. b5 {[%emt 0:02:49]} cxb5 {[%emt 0:01:41]} 25. Bxb7 {[%emt 0:01:02]} Qxb7 {[%emt 0:00:08]} 26. Qxb5 {[%emt 0:00:58]} Qf3 {[%emt 0:02:29]} 27. Qe2 {[%emt 0:02:44]} Qxe2 {[%emt 0:01:05]} 28. Nxe2 {[%emt 0:00:04]} Nd5 {[%emt 0:00:47]} 29. Rd3 {[%emt 0:00:53]} Rde8 {[%emt 0:03:51]} 30. Nf4 {[%emt 0:00:18]} Bxf4 {[%emt 0:02:07]} 31. Bxf4 {[%emt 0:00:30]} Re1+ {[%emt 0:04:10]} 32. Rxe1 {[%emt 0:00:14]} Rxe1+ {[%emt 0:00:06]} 33. Kg2 {[%emt 0:00:10]} Nxf4+ {[%emt 0:00:36]} 34. gxf4 {[%emt 0:00:08]} Kf8 {[%emt 0:01:10]} 35. d5 {[%emt 0:00:30]} Ke7 {[%emt 0:01:05]} 36. Kf3 {[%emt 0:07:09]} Kd6 {[%emt 0:01:48]} 37. h4 {[%emt 0:01:27]} f5 {[%emt 0:01:17]} 38. Rc3 {[%emt 0:02:07]} Re7 {[%emt 0:00:55]} 39. Rd3 {[%emt 0:00:52]} h5 {[%emt 0:02:17]} 40. Kg2 {[%emt 0:00:43]} g6 {[%emt 0:01:38]} 41. Rg3 {[%emt 0:00:00]} Rg7 {[%emt 0:07:38]} 42. Rd3 {[%emt 0:00:00]} Rf7 {[%emt 0:00:00]} 43. Kf1 {[%emt 0:00:00]} Rf6 {[%emt 0:00:00]} 44. Ke2 {[%emt 0:00:00]} Kc5 {[%emt 0:00:00]} 45. Kd2 {[%emt 0:00:00]} Rd6 {[%emt 0:00:00]} 46. Kc3 {[%emt 0:00:00]} Rxd5 {[%emt 0:00:00]} 47. Rg3 {[%emt 0:00:00]} Rd6 {[%emt 0:00:00]} 48. Rg1 {[%emt 0:00:00]} Re6 {[%emt 0:00:00]} 49. Kb3 {[%emt 0:00:00]} b5 {[%emt 0:00:00]} 50. Rc1+ {[%emt 0:00:00]} Kb6 {[%emt 0:00:00]} 51. Rg1 {[%emt 0:00:00]} a6 {[%emt 0:00:00]} 52. Rg3 {[%emt 0:00:00]} Kc5 {[%emt 0:00:00]} 53. Rg1 {[%emt 0:00:00]} Kd6 {[%emt 0:00:00]} 54. Kb4 {[%emt 0:00:00]} Ke7 {[%emt 0:00:00]} 55. Ka5 {[%emt 0:00:00]} Kf7 {[%emt 0:00:00]} 56. Rc1 {[%emt 0:00:00]} Re4 {[%emt 0:00:00]} 57. Kxa6 {[%emt 0:02:44]} Ra4+ {[%emt 0:00:00]} 58. Kxb5 {[%emt 0:00:22]} Rxa3 {[%emt 0:00:00]} 59. Rc7+ {[%emt 0:00:22]} Kf6 {[%emt 0:00:00]} 60. Rc6+ {[%emt 0:00:10]} Kg7 {[%emt 0:00:00]} 61. Rc7+ {[%emt 0:01:39]} Kh6 {[%emt 0:00:00]} 62. Kc5 {[%emt 0:00:59]} Ra4 {[%emt 0:00:00]} 63. Kd5 {[%emt 0:00:17]} Rxf4 {[%emt 0:00:00]} 64. Ke5 {[%emt 0:00:08]} Rxh4 {[%emt 0:00:00]} 65. Kf6 {[%emt 0:00:28]} Ra4 {[%emt 0:00:00]} 66. f4 {[%emt 0:01:48]} Ra6+ {[%emt 0:00:00]} 67. Kf7 {[%emt 0:01:08]} h4 {[%emt 0:00:00]} 68. Rc1 {[%emt 0:01:40]} Kh5 {[%emt 0:00:00]} 69. Rg1 {[%emt 0:00:14]} h3 {[%emt 0:00:00]} 70. Re1 {[%emt 0:02:21]} Kg4 {[%emt 0:00:00]} 71. Rh1 {[%emt 0:00:30]} Kg3 {[%emt 0:00:00]} 0-1

[Event "NED-ch U20 Girls 2018"]
[Site "Assen"]
[Date "2018.05.03"]
[Round "5"]
[White "Martinez, Anna"]
[Black "Adema, Marrit"]
[Result "1/2-1/2"]
[ECO "E14"]
[WhiteElo "1795"]
[BlackElo "1497"]
[Annotator "NA"]
[PlyCount "40"]
[EventDate "2018.??.??"]
[EventType "swiss"]
[EventCountry "NED"]
[SourceTitle "playchess.com"]
[Source "ChessBase"]
[SourceQuality "1"]
[TimeControl "5400+30"]

1. c4 {[%emt 0:00:00]} Nf6 {[%emt 0:03:18]} 2. Nc3 {[%emt 0:00:22]} e6 {[%emt 0:01:48]} 3. Nf3 {[%emt 0:10:08]} b6 {[%emt 0:01:45]} 4. b3 {[%emt 0:02:52]} Bb7 {[%emt 0:02:15]} 5. Bb2 {[%emt 0:00:07]} c5 {[%emt 0:06:17]} 6. e3 {[%emt 0:01:54]} d5 {[%emt 0:07:24]} 7. d4 {[%emt 0:03:13]} Nbd7 {[%emt 0:01:58]} 8. Be2 {[%emt 0:01:03]} Be7 {[%emt 0:01:43]} 9. O-O {[%emt 0:01:07]} O-O {[%emt 0:00:20]} 10. Rc1 {[%emt 0:02:27]} Rc8 {[%emt 0:03:49]} 11. Ne5 {[%emt 0:07:10]} Ne8 {[%emt 0:11:30]} 12. cxd5 {[%emt 0:03:07]} cxd4 {[%emt 0:05:36]} 13. exd4 {[%emt 0:01:03]} exd5 {[%emt 0:01:55]} 14. Bg4 {[%emt 0:02:42]} f5 {[%emt 0:04:00]} 15. Bf3 {[%emt 0:01:46]} Nef6 {[%emt 0:03:50]} 16. Ne2 {[%emt 0:11:11]} Ne4 {[%emt 0:05:15]} 17. Nf4 {[%emt 0:04:31]} Rxc1 {[%emt 0:05:15]} 18. Bxc1 {[%emt 0:01:39]} Qc8 {[%emt 0:01:14]} 19. Nxd7 {[%emt 0:15:34]} Qxd7 {[%emt 0:00:41]} 20. Bb2 {[%emt 0:03:29]} Bd6 {[%emt 0:06:45]} 1/2-1/2

[Event "NED-ch U20 Girls 2018"]
[Site "Assen"]
[Date "2018.05.03"]
[Round "5"]
[White "Waardenburg, Marlinde"]
[Black "Tiggelman, Laura"]
[Result "1-0"]
[ECO "B23"]
[WhiteElo "1686"]
[BlackElo "1536"]
[Annotator "NA"]
[PlyCount "67"]
[EventDate "2018.??.??"]
[EventType "swiss"]
[EventCountry "NED"]
[SourceTitle "playchess.com"]
[Source "ChessBase"]
[SourceQuality "1"]
[TimeControl "5400+30"]

1. e4 {[%emt 0:00:00]} c5 {[%emt 0:00:04]} 2. Nc3 {[%emt 0:00:00]} Nc6 {[%emt 0:00:02]} 3. f4 {[%emt 0:00:00]} g6 {[%emt 0:00:08]} 4. Nf3 {[%emt 0:00:00]} Bg7 {[%emt 0:00:06]} 5. Bc4 {[%emt 0:00:34]} e6 {[%emt 0:00:09]} 6. d3 {[%emt 0:00:54]} Nge7 {[%emt 0:00:13]} 7. O-O {[%emt 0:00:32]} d5 {[%emt 0:00:15]} 8. Bb3 {[%emt 0:06:06]} O-O {[%emt 0:01:27]} 9. Qe1 {[%emt 0:04:10]} Nd4 {[%emt 0:02:13]} 10. Nxd4 {[%emt 0:20:04]} cxd4 {[%emt 0:00:35]} 11. Nd1 {[%emt 0:00:42]} a5 {[%emt 0:02:38]} 12. a4 {[%emt 0:04:11]} dxe4 {[%emt 0:01:02]} 13. dxe4 {[%emt 0:01:34]} b6 {[%emt 0:02:19]} 14. Rf3 {[%emt 0:02:03]} Ba6 {[%emt 0:05:02]} 15. Nf2 {[%emt 0:02:58]} Rc8 {[%emt 0:04:45]} 16. Rh3 {[%emt 0:15:30]} Bc4 {[%emt 0:05:23]} 17. Bd2 {[%emt 0:10:18]} Bxb3 {[%emt 0:01:20]} 18. cxb3 {[%emt 0:00:30]} Qd7 {[%emt 0:08:02]} 19. Nd3 {[%emt 0:03:19]} Rc2 {[%emt 0:10:24]} 20. b4 {[%emt 0:02:18]} axb4 {[%emt 0:03:41]} 21. Bxb4 {[%emt 0:00:26]} Rfc8 {[%emt 0:07:38]} 22. Qh4 {[%emt 0:01:46]} h5 {[%emt 0:00:52]} 23. Qxe7 {[%emt 0:02:42]} Qc6 {[%emt 0:03:17]} 24. Re1 {[%emt 0:05:15]} Qxa4 {[%emt 0:04:32]} 25. Qg5 {[%emt 0:04:12]} Qa8 {[%emt 0:20:54]} 26. Rf3 {[%emt 0:01:40]} Qb7 {[%emt 0:01:40]} 27. f5 {[%emt 0:01:10]} exf5 {[%emt 0:00:31]} 28. exf5 {[%emt 0:00:24]} Qd5 {[%emt 0:01:01]} 29. Qh4 {[%emt 0:03:17]} b5 {[%emt 0:04:18]} 30. fxg6 {[%emt 0:00:19]} fxg6 {[%emt 0:00:23]} 31. Qg3 {[%emt 0:00:57]} g5 {[%emt 0:02:00]} 32. Rf2 {[%emt 0:02:43]} h4 {[%emt 0:02:24]} 33. Qg4 {[%emt 0:01:48]} Rxf2 {[%emt 0:02:36]} 34. Qxc8+ {[%emt 0:00:13]} 1-0

[Event "NED-ch U20 Girls 2018"]
[Site "Assen"]
[Date "2018.05.03"]
[Round "5"]
[White "Warnaar, Alisha"]
[Black "Waardenburg, Feline"]
[Result "0-1"]
[ECO "C06"]
[WhiteElo "1647"]
[BlackElo "1737"]
[Annotator "NA"]
[PlyCount "76"]
[EventDate "2018.??.??"]
[EventType "swiss"]
[EventCountry "NED"]
[SourceTitle "playchess.com"]
[Source "ChessBase"]
[SourceQuality "1"]
[TimeControl "5400+30"]

1. e4 {[%emt 0:00:00]} e6 {[%emt 0:00:06]} 2. d4 {[%emt 0:00:00]} d5 {[%emt 0:00:04]} 3. Nd2 {[%emt 0:00:00]} Nf6 {[%emt 0:00:25]} 4. e5 {[%emt 0:00:11]} Nfd7 {[%emt 0:00:08]} 5. Bd3 {[%emt 0:00:07]} c5 {[%emt 0:00:43]} 6. c3 {[%emt 0:00:05]} Nc6 {[%emt 0:00:23]} 7. Ne2 {[%emt 0:00:36]} cxd4 {[%emt 0:02:16]} 8. cxd4 {[%emt 0:00:40]} f6 {[%emt 0:00:29]} 9. exf6 {[%emt 0:00:58]} Nxf6 {[%emt 0:00:24]} 10. Nf3 {[%emt 0:00:39]} Bd6 {[%emt 0:01:17]} 11. O-O {[%emt 0:00:34]} Qc7 {[%emt 0:00:32]} 12. Bg5 {[%emt 0:02:06]} O-O {[%emt 0:03:25]} 13. Qc2 {[%emt 0:01:46]} h6 {[%emt 0:02:31]} 14. Bh4 {[%emt 0:01:26]} Nh5 {[%emt 0:02:41]} 15. Bh7+ {[%emt 0:01:12]} Kh8 {[%emt 0:01:08]} 16. Bg6 {[%emt 0:03:10]} Rxf3 {[%emt 0:06:42]} 17. Bxh5 {[%emt 0:00:19]} Bxh2+ {[%emt 0:02:09]} 18. Kh1 {[%emt 0:00:20]} Rf5 {[%emt 0:00:51]} 19. Bg6 {[%emt 0:01:21]} Bd6 {[%emt 0:05:58]} 20. Bxf5 {[%emt 0:05:39]} exf5 {[%emt 0:01:04]} 21. Bg3 {[%emt 0:00:29]} f4 {[%emt 0:06:26]} 22. Bh2 {[%emt 0:01:15]} Qf7 {[%emt 0:08:08]} 23. Qd3 {[%emt 0:24:40]} Bf5 {[%emt 0:05:36]} 24. Qf3 {[%emt 0:01:06]} Be4 {[%emt 0:06:28]} 25. Qb3 {[%emt 0:08:55]} f3 {[%emt 0:05:29]} 26. Bxd6 {[%emt 0:08:34]} fxg2+ {[%emt 0:01:49]} 27. Kg1 {[%emt 0:01:32]} gxf1=Q+ {[%emt 0:36:48]} 28. Kxf1 {[%emt 0:02:33]} Qh5 {[%emt 0:00:00]} 29. Qg3 {[%emt 0:11:14]} Re8 {[%emt 0:00:00]} 30. Nf4 {[%emt 0:07:53]} Qh1+ {[%emt 0:00:00]} 31. Qg1 {[%emt 0:00:44]} Qf3 {[%emt 0:00:00]} 32. Qg3 {[%emt 0:06:17]} Nxd4 {[%emt 0:00:00]} 33. Qxf3 {[%emt 0:02:59]} Bxf3 {[%emt 0:00:00]} 34. Be5 {[%emt 0:00:55]} Nc2 {[%emt 0:00:00]} 35. Rc1 {[%emt 0:00:22]} Be4 {[%emt 0:00:00]} 36. Bd6 {[%emt 0:03:00]} Rd8 {[%emt 0:00:00]} 37. Be5 {[%emt 0:00:31]} Re8 {[%emt 0:00:00]} 38. Bd6 {[%emt 0:00:06]} g5 {[%emt 0:00:00]} 0-1

[Event "NED-ch U20 Girls 2018"]
[Site "Assen"]
[Date "2018.05.03"]
[Round "5"]
[White "Woest, Imre"]
[Black "Verhoeff, Timardi"]
[Result "0-1"]
[ECO "B12"]
[WhiteElo "1418"]
[BlackElo "1911"]
[Annotator "NA"]
[PlyCount "73"]
[EventDate "2018.??.??"]
[EventType "swiss"]
[EventCountry "NED"]
[SourceTitle "playchess.com"]
[Source "ChessBase"]
[SourceQuality "1"]
[TimeControl "5400+30"]

1. e4 {[%emt 0:00:00]} c6 {[%emt 0:00:06]} 2. d4 {[%emt 0:00:00]} d5 {[%emt 0:00:02]} 3. e5 {[%emt 0:00:00]} Bf5 {[%emt 0:00:05]} 4. Nf3 {[%emt 0:00:00]} e6 {[%emt 0:00:05]} 5. Be2 {[%emt 0:00:00]} Nd7 {[%emt 0:00:32]} 6. O-O {[%emt 0:00:11]} Ne7 {[%emt 0:00:14]} 7. Nbd2 {[%emt 0:00:52]} h6 {[%emt 0:06:27]} 8. Nb3 {[%emt 0:04:07]} Qc7 {[%emt 0:16:31]} 9. a4 {[%emt 0:15:55]} Bg4 {[%emt 0:10:12]} 10. Ne1 {[%emt 0:12:57]} Bxe2 {[%emt 0:01:34]} 11. Qxe2 {[%emt 0:00:05]} c5 {[%emt 0:12:00]} 12. dxc5 {[%emt 0:09:09]} Qxe5 {[%emt 0:06:23]} 13. Be3 {[%emt 0:04:56]} Ng6 {[%emt 0:06:35]} 14. Nd3 {[%emt 0:01:49]} Qc7 {[%emt 0:00:52]} 15. f4 {[%emt 0:03:36]} Be7 {[%emt 0:03:38]} 16. Bd4 {[%emt 0:05:11]} O-O {[%emt 0:02:05]} 17. g4 {[%emt 0:03:07]} Bf6 $11 {[%emt 0:10:24]} 18. Bxf6 {[%emt 0:09:39]} Nxf6 {[%emt 0:00:05]} 19. Nd4 {[%emt 0:04:54]} Ne4 {[%emt 0:02:30]} 20. b4 {[%emt 0:00:19]} Rfe8 {[%emt 0:02:37]} 21. Qg2 {[%emt 0:11:13]} a6 {[%emt 0:03:19]} 22. f5 {[%emt 0:03:52]} Nf8 {[%emt 0:05:21]} 23. fxe6 {[%emt 0:04:11]} fxe6 {[%emt 0:01:24]} 24. Nf2 {[%emt 0:01:35]} Nxf2 {[%emt 0:01:27]} 25. Rxf2 {[%emt 0:00:38]} Ng6 {[%emt 0:00:41]} 26. Re1 {[%emt 0:01:02]} Nf4 {[%emt 0:01:25]} 27. Qg3 {[%emt 0:00:50]} e5 {[%emt 0:00:05]} 28. Nf5 {[%emt 0:00:16]} Qd7 {[%emt 0:02:21]} 29. Nd6 {[%emt 0:01:39]} Re6 {[%emt 0:01:07]} 30. h3 {[%emt 0:00:16]} b6 {[%emt 0:00:26]} 31. Qe3 {[%emt 0:01:21]} Rf8 {[%emt 0:01:29]} 32. Nf5 {[%emt 0:00:48]} d4 {[%emt 0:00:44]} 33. Qb3 {[%emt 0:00:29]} Qd5 {[%emt 0:01:12]} 34. Qxd5 {[%emt 0:01:15]} Nxd5 {[%emt 0:00:05]} 35. Nxd4 {[%emt 0:00:18]} Ree8 {[%emt 0:01:54]} 36. Rxf8+ {[%emt 0:00:35]} Kxf8 {[%emt 0:00:11]} 37. Nc6 {[%emt 0:00:00]} 0-1

[Event "NED-ch U20 Girls 2018"]
[Site "Assen"]
[Date "2018.05.04"]
[Round "6"]
[White "Verhoeff, Timardi"]
[Black "Waardenburg, Marlinde"]
[Result "1-0"]
[ECO "A25"]
[WhiteElo "1911"]
[BlackElo "1686"]
[Annotator "NA"]
[PlyCount "121"]
[EventDate "2018.??.??"]
[EventType "swiss"]
[EventCountry "NED"]
[SourceTitle "playchess.com"]
[Source "ChessBase"]
[SourceQuality "1"]
[TimeControl "5400+30"]

1. c4 {[%emt 0:00:00]} e5 {[%emt 0:00:02]} 2. g3 {[%emt 0:00:00]} Nc6 {[%emt 0:00:14]} 3. Bg2 {[%emt 0:00:00]} f5 {[%emt 0:00:16]} 4. e3 {[%emt 0:00:21]} Nf6 {[%emt 0:02:14]} 5. Nc3 {[%emt 0:00:26]} d5 {[%emt 0:02:55]} 6. d4 {[%emt 0:29:39] A25: English Opening vs King's Indian with ...Nc6 but without early d3} ({Better is} 6. cxd5 $14 Nb4 7. d3) (6. Nxd5 Nxd5 7. cxd5 Nb4 8. d3 Nxd5 9. Nf3 Bb4+ 10. Bd2 Bxd2+ 11. Qxd2 Qd6 12. O-O O-O 13. e4 Ne7 14. d4 fxe4 15. Nxe5 {1-0 (50) Kramnik,V (2799)-Bartel,M (2674) Dortmund 2012}) 6... e4 {[%emt 0:14:37]} 7. a3 $146 {[%emt 0:22:37]} ({Predecessor:} 7. Nge2 Nb4 8. O-O dxc4 9. f3 exf3 10. Bxf3 c6 11. b3 Be6 12. e4 fxe4 13. Nxe4 Nxe4 14. Bxe4 {½-½ (61) Truyens,A (2254)-De Smet,K (2260) ICCF email 2005}) 7... dxc4 {[%emt 0:03:39]} 8. Qa4 {[%emt 0:01:22]} Be6 {[%emt 0:07:29]} 9. f3 {[%emt 0:08:57]} Bd5 {[%emt 0:03:09]} 10. fxe4 {[%emt 0:01:19]} Nxe4 {[%emt 0:04:48]} 11. Nxe4 {[%emt 0:01:26]} fxe4 {[%emt 0:00:57]} 12. Ne2 {[%emt 0:01:17]} Qd7 {[%emt 0:04:49]} 13. Nf4 {[%emt 0:03:46]} g5 {[%emt 0:16:38]} 14. Nxd5 {[%emt 0:01:06]} Qxd5 {[%emt 0:00:10]} 15. Qc2 {[%emt 0:00:37]} O-O-O {[%emt 0:02:15]} 16. Bxe4 {[%emt 0:01:24]} Nxd4 $1 {[%emt 0:01:34]} 17. exd4 $2 {[%emt 0:03:23]} (17. Qg2 $11 Qe6 18. O-O (18. Bxb7+ Kb8 $17) 18... Ne2+ 19. Kh1) 17... Re8 {[%emt 0:01:39]} 18. O-O {[%emt 0:05:33]} Qxd4+ {[%emt 0:01:36]} 19. Qf2 {[%emt 0:01:59]} (19. Kh1 {might work better.} Qxe4+ 20. Qxe4 Rxe4 21. Bxg5) 19... Qxf2+ {[%emt 0:03:33]} ({Resist} 19... Rxe4 20. Qxd4 Rxd4 21. Bxg5 $17) 20. Kxf2 {[%emt 0:00:06]} Rxe4 {[%emt 0:00:11]} 21. Bxg5 {[%emt 0:00:57]} Bc5+ {[%emt 0:02:42]} 22. Kg2 {[%emt 0:04:47]} Re2+ {[%emt 0:05:08]} 23. Kh3 {[%emt 0:00:12]} Bd4 {[%emt 0:02:37]} 24. Bc1 {[%emt 0:03:18]} (24. Rf7 $17 {was worth a try.}) 24... Rhe8 {[%emt 0:02:10]} 25. Rd1 {[%emt 0:02:26]} Bxb2 {[%emt 0:03:15]} 26. Bxb2 {[%emt 0:00:22]} Rxb2 {[%emt 0:00:04]} 27. Rac1 {[%emt 0:00:36]} Ree2 {[%emt 0:02:17]} 28. Rxc4 {[%emt 0:01:17]} Rxh2+ {[%emt 0:00:18]} 29. Kg4 {[%emt 0:00:05]} Rhd2 {[%emt 0:02:33]} 30. Rh1 {[%emt 0:00:28]} Rd7 {[%emt 0:03:41]} 31. Rf4 {[%emt 0:00:57]} b6 {[%emt 0:00:33]} 32. Rf8+ {[%emt 0:00:24]} Kb7 {[%emt 0:00:13]} 33. Rh8 {[%emt 0:01:35]} Rg7+ {[%emt 0:01:43]} 34. Kf4 {[%emt 0:00:27]} Rb3 {[%emt 0:00:36]} 35. g4 {[%emt 0:00:38]} Rxa3 {[%emt 0:00:15]} 36. Rh4 {[%emt 0:00:43]} Ra4+ {[%emt 0:02:41]} 37. Kf5 {[%emt 0:00:08]} Rf7+ {[%emt 0:00:32]} 38. Kg5 {[%emt 0:00:53]} Rg7+ $11 {[%emt 0:00:59]} (38... Rff4 $19 39. R8xh7 a5) 39. Kf5 {[%emt 0:00:11]} a5 {[%emt 0:01:08]} 40. R8xh7 {[%emt 0:00:56]} Rxh7 {[%emt 0:01:01]} 41. Rxh7 {[%emt 0:00:04]} Rd4 {[%emt 0:00:00]} 42. g5 {[%emt 0:00:00]} Rd5+ {[%emt 0:00:00]} 43. Kf6 {[%emt 0:00:00]} Rd6+ {[%emt 0:00:00]} 44. Kf5 {[%emt 0:00:00]} Rd5+ {[%emt 0:00:00]} 45. Kf6 {[%emt 0:00:00]} b5 {[%emt 0:00:00]} 46. g6 {[%emt 0:00:00]} Rd6+ {[%emt 0:00:00]} 47. Kf7 {[%emt 0:01:54]} Rxg6 {[%emt 0:00:00]} 48. Kxg6 {[%emt 0:00:08]} Kb6 {[%emt 0:00:00]} 49. Kf5 {[%emt 0:00:30]} c6 {[%emt 0:00:26]} 50. Ke4 {[%emt 0:00:48]} Kc5 {[%emt 0:00:45]} 51. Rh1 {[%emt 0:01:47]} a4 {[%emt 0:02:05]} 52. Kd3 {[%emt 0:00:46]} b4 {[%emt 0:00:47]} 53. Rh5+ {[%emt 0:00:20]} Kb6 {[%emt 0:01:12]} 54. Kc4 {[%emt 0:00:13]} b3 {[%emt 0:00:18]} 55. Kb4 {[%emt 0:00:23]} b2 {[%emt 0:01:10]} 56. Rh1 {[%emt 0:00:02]} c5+ {[%emt 0:00:19]} 57. Kxa4 {[%emt 0:00:05]} Kc6 {[%emt 0:00:48]} 58. Kb3 {[%emt 0:00:08]} Kd5 {[%emt 0:00:13]} 59. Kxb2 {[%emt 0:00:05]} Kd4 {[%emt 0:00:47]} 60. Kc2 {[%emt 0:00:07]} c4 {[%emt 0:00:14]} 61. Rh4+ {[%emt 0:00:06]} 1-0

[Event "NED-ch U20 Girls 2018"]
[Site "Assen"]
[Date "2018.05.04"]
[Round "6"]
[White "Naber, Quirine"]
[Black "Martinez, Anna"]
[Result "1/2-1/2"]
[ECO "B40"]
[WhiteElo "1775"]
[BlackElo "1795"]
[Annotator "NA"]
[PlyCount "54"]
[EventDate "2018.??.??"]
[EventType "swiss"]
[EventCountry "NED"]
[SourceTitle "playchess.com"]
[Source "ChessBase"]
[SourceQuality "1"]
[TimeControl "5400+30"]

1. e4 {[%emt 0:00:00]} c5 {[%emt 0:00:05]} 2. Nf3 {[%emt 0:00:00]} e6 {[%emt 0:00:04]} 3. d4 {[%emt 0:00:28]} cxd4 {[%emt 0:00:07]} 4. Nxd4 {[%emt 0:00:03]} Nf6 {[%emt 0:00:20]} 5. f3 {[%emt 0:01:16]} d5 {[%emt 0:03:51]} 6. Bb5+ {[%emt 0:06:18]} Bd7 {[%emt 0:01:07]} 7. e5 {[%emt 0:02:47]} Bxb5 {[%emt 0:04:25]} 8. Nxb5 {[%emt 0:02:48]} Nfd7 {[%emt 0:00:48]} 9. f4 {[%emt 0:03:27]} a6 {[%emt 0:01:06]} 10. Nd4 {[%emt 0:01:04]} Nc6 {[%emt 0:00:17]} 11. c3 {[%emt 0:00:44]} Qh4+ {[%emt 0:09:46]} 12. g3 {[%emt 0:00:06]} Qh3 {[%emt 0:00:41]} 13. Qf3 {[%emt 0:00:21]} h5 {[%emt 0:05:20]} 14. Nd2 {[%emt 0:07:11]} Be7 {[%emt 0:18:00]} 15. N2b3 {[%emt 0:00:57]} Nxd4 {[%emt 0:04:02]} 16. Nxd4 {[%emt 0:00:09]} h4 {[%emt 0:05:20]} 17. g4 {[%emt 0:00:48]} Qxf3 {[%emt 0:00:04]} 18. Nxf3 {[%emt 0:00:05]} O-O-O {[%emt 0:04:13]} 19. Be3 {[%emt 0:00:46]} Bc5 {[%emt 0:05:36]} 20. Bd4 {[%emt 0:02:13]} Bxd4 {[%emt 0:02:34]} 21. cxd4 {[%emt 0:00:22]} f6 {[%emt 0:02:11]} 22. Ke2 {[%emt 0:00:51]} Kb8 {[%emt 0:05:09]} 23. h3 {[%emt 0:02:38]} Nf8 {[%emt 0:03:48]} 24. Ke3 {[%emt 0:02:01]} Ng6 {[%emt 0:01:48]} 25. Rac1 {[%emt 0:05:44]} Rhf8 {[%emt 0:04:37]} 26. Rhf1 {[%emt 0:02:33]} f5 {[%emt 0:04:11]} 27. g5 {[%emt 0:02:02]} Rd7 {[%emt 0:00:41]} 1/2-1/2

[Event "NED-ch U20 Girls 2018"]
[Site "Assen"]
[Date "2018.05.04"]
[Round "6"]
[White "Waardenburg, Feline"]
[Black "Den Dunnen, Lola"]
[Result "0-1"]
[ECO "E20"]
[WhiteElo "1737"]
[BlackElo "1912"]
[Annotator "NA"]
[PlyCount "74"]
[EventDate "2018.??.??"]
[EventType "swiss"]
[EventCountry "NED"]
[SourceTitle "playchess.com"]
[Source "ChessBase"]
[SourceQuality "1"]
[TimeControl "5400+30"]

1. d4 {[%emt 0:00:00]} Nf6 {[%emt 0:00:06]} 2. c4 {[%emt 0:00:00]} e6 {[%emt 0:00:05]} 3. Nc3 {[%emt 0:00:00]} Bb4 {[%emt 0:00:05]} 4. Bd2 {[%emt 0:00:51]} c5 {[%emt 0:00:14]} 5. a3 {[%emt 0:02:28]} Bxc3 {[%emt 0:00:59]} 6. Bxc3 {[%emt 0:00:52]} Ne4 {[%emt 0:00:27] E20: Nimzo-Indian: 4 g3 and 4 f3} 7. Qc2 {[%emt 0:00:57]} (7. Rc1 Nxc3 8. Rxc3 Qb6 9. Nf3 cxd4 10. Nxd4 Nc6 11. Nb5 O-O 12. e3 d5 13. c5 Qd8 14. Be2 {1-0 (42) Slipak,S (2439)-Real de Azua,E (2484) Villa Martelli 2017}) 7... Nxc3 {[%emt 0:01:17]} 8. Qxc3 {[%emt 0:00:37]} cxd4 {[%emt 0:02:08]} 9. Qxd4 {[%emt 0:01:14]} O-O {[%emt 0:00:53]} 10. Nf3 {[%emt 0:03:23]} d6 {[%emt 0:06:57]} 11. e3 {[%emt 0:08:32]} Nc6 {[%emt 0:01:09]} 12. Qc3 {[%emt 0:01:42]} Qe7 {[%emt 0:04:30]} 13. Be2 $146 {[%emt 0:01:53]} ({Predecessor:} 13. Rd1 e5 {1-0 (41) Jones (2129)-Dehaybe,A (2006) LSS email 2008}) 13... b6 {[%emt 0:02:28]} 14. O-O {[%emt 0:02:36]} Bb7 {[%emt 0:00:22]} 15. Rfd1 {[%emt 0:04:03]} Rfd8 {[%emt 0:04:53]} 16. Nd2 {[%emt 0:12:10]} Ne5 {[%emt 0:06:59]} 17. f4 {[%emt 0:05:58]} Ng6 {[%emt 0:01:54]} 18. Rf1 {[%emt 0:00:29]} f5 {[%emt 0:13:21]} 19. Nf3 {[%emt 0:03:24]} e5 {[%emt 0:07:37]} 20. Rad1 {[%emt 0:15:27]} exf4 {[%emt 0:04:25]} 21. Nd4 $1 {[%emt 0:02:10]} Qg5 {[%emt 0:04:07]} 22. Bf3 {[%emt 0:04:22]} Bxf3 {[%emt 0:00:54]} 23. Nxf3 {[%emt 0:01:39]} Qg4 {[%emt 0:02:20]} 24. exf4 {[%emt 0:04:22]} Nxf4 {[%emt 0:02:22]} 25. Qc2 {[%emt 0:01:18]} Re8 {[%emt 0:04:10]} 26. Rd2 {[%emt 0:00:57]} Re4 {[%emt 0:04:15]} 27. c5 {[%emt 0:10:16]} bxc5 {[%emt 0:04:06]} 28. Qb3+ $19 {[%emt 0:02:28]} c4 {[%emt 0:02:41]} 29. Qc2 {[%emt 0:02:23]} d5 {[%emt 0:03:05]} 30. Nd4 {[%emt 0:02:23]} Rxd4 {[%emt 0:03:31]} 31. Rxd4 {[%emt 0:01:58]} Ne2+ {[%emt 0:00:06]} 32. Kh1 {[%emt 0:00:13]} Nxd4 {[%emt 0:00:08]} 33. Qc3 {[%emt 0:03:28]} Re8 {[%emt 0:01:18]} 34. h3 {[%emt 0:00:51]} Qe4 {[%emt 0:00:47]} 35. Rd1 {[%emt 0:00:32]} Ne2 {[%emt 0:00:46]} 36. Qa5 {[%emt 0:00:47]} d4 {[%emt 0:00:44]} 37. Qxa7 {[%emt 0:00:41]} Nf4 {[%emt 0:01:27]} 0-1